Cogmind - Beta 9.6 @@@ ROGUE MODE // 2020.09.10 @ 21:13:43 Player: Carcosa Result: Destroyed by S-10 Pest with Light Assault Rifle Performance ------------- Evolutions (1) 500 Regions Visited (2) 400 Robots Destroyed (9) 45 Value Destroyed (342) 342 Prototype IDs (0) 0 Alien Tech Used (0) 0 Bonus (0) 0 TOTAL SCORE: 1287 Bonus ------- None Cogmind --------- Core Integrity 0/400 Matter 243/300 Energy 99/100 System Corruption 2% Temperature Cool (0) Movement Core (100) Ox1 Location -9/Materials Parts ------- > --- POWER (1) -------- (None) > --- PROPULSION (3) --- (None) > --- UTILITY (2) ------ Small Storage Unit > --- WEAPON (3) ------- (None) > --- INVENTORY (6) ---- Deuterium Engine Aluminum Leg Aluminum Leg Wheel Armored Wheel Peak State ------------ > --- POWER ------------ Ion Engine > --- PROPULSION ------- Wheel Wheel Compact Wheel > --- UTILITY ---------- Small Storage Unit Sensor Array > --- WEAPON ----------- EM Pulse Gun Small Laser Small Laser > --- INVENTORY -------- Deuterium Engine Aluminum Leg Aluminum Leg Wheel Armored Wheel Shock Rifle [Rating: 10] Favorites ----------- Power Ion Engine Engine Ion Engine Propulsion Wheel Wheel Wheel Utility Small Storage Unit Device Sensor Array Storage Small Storage Unit Weapon Assault Rifle Energy Gun Small Laser Ballistic Gun Assault Rifle Build | -11 -10 -9 ------- Run | Scr Mat Mat Slots Evolved 2 | . . 2 Power . | . . . Propulsion 1 | . . 1 Utility . | . . . Weapon 1 | . . 1 Parts Attached 13 | 6 3 4 Power 2 | 1 1 . Engine 2 | 1 1 . Core . | . . . Reactor . | . . . Propulsion 3 | 2 . 1 Treads . | . . . Leg . | . . . Wheel 3 | 2 . 1 Hover . | . . . Flight . | . . . Utility 2 | 1 1 . Device 1 | . 1 . Storage 1 | 1 . . Processor . | . . . Hackware . | . . . Protection . | . . . Artifact . | . . . Weapon 6 | 2 1 3 Energy Gun 4 | . 1 3 Energy Cannon . | . . . Ballistic Gun 2 | 2 . . Ballistic Cannon . | . . . Launcher . | . . . Special Weapon . | . . . Impact Weapon . | . . . Slashing Weapon . | . . . Piercing Weapon . | . . . Special Melee Weapon . | . . . Unidentified Prototypes . | . . . Parts Lost 12 | . 3 9 Power 2 | . 1 1 Propulsion 3 | . . 3 Utility 1 | . . 1 Weapon 6 | . 2 4 Highest Loss Streak 9 | . 3 9 Average Slot Usage (%) 89 | . 94 80 Engine 10 | . 11 8 Wheel 27 | . 28 27 Device 11 | . 12 8 Storage 12 | . 14 11 Energy Gun 10 | . 2 24 Ballistic Gun 14 | . 23 . Naked Turns . | . . . Heaviest Build 14 | 13 14 14 Greatest Support 36 | 26 26 36 Greatest Overweight (x) 1 | . . 1 Average Overweight (x) . | . . . Largest Inventory Capacity 6 | 6 6 6 Average Capacity 5 | 5 6 6 Most Carried 6 | 6 6 6 Average Carried 5 | 3 5 4 Final Capacity 6 | 6 6 6 Final Carried 6 | 6 6 5 Class Distribution -------------------- 81% | Mutant 18% | Skirmisher Dominant Class ---------------- Mutant | -10/Materials Skirmisher | -9/Materials Resources | -11 -10 -9 ----------- Run | Scr Mat Mat Matter Collected 323 | 211 112 . Remotely . | . . . Salvage Created 372 | . 287 85 Parts 26 | . 21 5 Haulers Intercepted . | . . . Recyclers Shooed . | . . . Parts Field Recycled . | . . . Retrieved Matter . | . . . Parts Self-Destructed . | . . . Prevented . | . . . Kills | -11 -10 -9 ------- Run | Scr Mat Mat Combat Hostiles Destroyed 9 | . 7 2 Guns 9 | . 7 2 Classes Destroyed 1 | . 1 . Grunt 9 | . 7 2 Best Kill Streak 5 | . 5 2 Combat Bots Only 5 | . 5 2 Max Kills in Single Turn 1 | . 1 1 Gunslinging . | . . . Exploded . | . . . Melee . | . . . Uniques/NPCs Destroyed . | . . . Combat | -11 -10 -9 -------- Run | Scr Mat Mat Damage Taken 1390 | . 564 826 Core 561 | . 157 404 Absorbed by Shields . | . . . Core Remaining (%) 68 | 100 37 . Volleys Fired 32 | . 24 8 Largest 2 | . 2 2 Hottest 90 | . 60 90 Shots Fired 59 | . 46 13 Gun 59 | . 46 13 Cannon . | . . . Launcher . | . . . Special . | . . . Kinetic 44 | . 44 . Thermal 7 | . . 7 Explosive . | . . . Electromagnetic 8 | . 2 6 Robot Hit Streak 5 | . 5 5 Robot Miss Streak 3 | . 3 2 Penetration Max . | . . . Secondary Targets 2 | . 2 . Max Gunslinging Chain 1 | . 1 . Shots Hit Robots 39 | . 30 9 Core Hits 19 | . 13 6 Critical Hits . | . . . Critical Kills . | . . . Critical Parts Destroyed . | . . . Melee Attacks . | . . . Impact . | . . . Slashing . | . . . Piercing . | . . . Sneak Attacks . | . . . Combat Hostiles . | . . . Follow-up Attacks . | . . . Damage Inflicted 524 | . 371 153 Guns 516 | . 371 145 Cannons . | . . . Explosions . | . . . Melee . | . . . Ramming 8 | . . 8 Kinetic 343 | . 343 . Thermal 58 | . . 58 Explosive . | . . . Electromagnetic 115 | . 28 87 Impact . | . . . Slashing . | . . . Piercing . | . . . Highest Corruption 2 | . . 2 Average Corruption 2 | . . 2 Corruption Purged . | . . . Overload Shots . | . . . Overflow Damage . | . . . Projectiles . | . . . Explosions . | . . . Melee . | . . . Knockbacks . | . . . Impact . | . . . Kinetic . | . . . Secondary . | . . . Self-Inflicted Damage 2 | . . 2 Shots . | . . . Rammed 7 | . . 7 Targets Rammed 7 | . . 7 Kicked . | . . . Crushed . | . . . Highest Temperature 197 | . 4 197 Average Temperature 65 | . 2 96 Received Heat Transfer 657 | . 318 339 Siege Activations . | . . . Robots Corrupted . | . . . Combat Hostiles . | . . . Parts Fried . | . . . Impact Corruptions . | . . . Robots Melted . | . . . Combat Hostiles . | . . . Parts Melted . | . . . Heat Transferred 125 | . . 125 Parts Sabotaged . | . . . Parts Stolen . | . . . Parts Stripped . | . . . Power Chain Reactions . | . . . Missiles Intercepted . | . . . Alert | -11 -10 -9 ------- Run | Scr Mat Mat Peak Influence 210 | . 210 104 Average Influence 74 | . 90 84 Maximum Alert Level 1 | . 1 . Low Security (%) 89 | 100 80 100 Level 1 10 | . 19 . Level 2 . | . . . Level 3 . | . . . Level 4 . | . . . Level 5 . | . . . High Security . | . . . Max Security . | . . . Squads Dispatched 3 | . 2 1 Investigation . | . . . Extermination . | . . . Reinforcement 3 | . 2 1 Assault . | . . . Garrison . | . . . Intercept . | . . . Construction Impeded . | . . . Haulers Reinforced . | . . . Stealth | -11 -10 -9 --------- Run | Scr Mat Mat Distress Signals 4 | . 2 2 Communications Jammed . | . . . Distress Signals . | . . . Times Spotted 29 | . 17 12 Peak Tracking Total 11 | . 6 11 Tactical Retreats 1 | . 1 . Traps | -11 -10 -9 ------- Run | Scr Mat Mat Traps Triggered . | . . . Indirectly . | . . . Trap Hack Attempts . | . . . Triggered . | . . . Disarmed . | . . . Reprogrammed . | . . . Reused . | . . . Traps Extracted . | . . . Installed . | . . . Triggered . | . . . Machines | -11 -10 -9 ---------- Run | Scr Mat Mat Machines Disabled 1 | . . 1 Max in Single Turn 1 | . . 1 Machines Sabotaged . | . . . Garrisons Compromised . | . . . Overloaded Fab Kills . | . . . Fab Network Shutdowns . | . . . Hacking | -11 -10 -9 --------- Run | Scr Mat Mat Machines Accessed . | . . . Terminals . | . . . Fabricators . | . . . Repair Stations . | . . . Recycling Units . | . . . Scanalyzers . | . . . Garrison Access . | . . . Total Hacks . | . . . Successful . | . . . Failed . | . . . Catastrophic . | . . . Database Lockouts . | . . . Manual . | . . . Terminals . | . . . Fabricators . | . . . Repair Stations . | . . . Recycling Units . | . . . Scanalyzers . | . . . Garrison Access . | . . . Terminal Hacks . | . . . Fabricator Hacks . | . . . Repair Station Hacks . | . . . Recycling Unit Hacks . | . . . Scanalyzer . | . . . Garrison Access Hacks . | . . . Unauthorized Hacks . | . . . Terminals . | . . . Fabricators . | . . . Repair Stations . | . . . Recycling Units . | . . . Scanalyzers . | . . . Garrison Access . | . . . Data Cores Recovered . | . . . Used . | . . . Hacking Detections . | . . . Full Trace Events . | . . . Feedback Events . | . . . Feedback Blocked . | . . . Robot Schematics Acquired . | . . . Robots Built . | . . . Matter . | . . . Time . | . . . Total Robot Build Rating . | . . . Part Schematics Acquired . | . . . Parts Built . | . . . Matter . | . . . Time . | . . . Total Part Build Rating . | . . . Parts Repaired . | . . . Time . | . . . Parts Recycled . | . . . Recycled Matter . | . . . Retrieved Matter . | . . . Retrieved Components . | . . . Parts Scanalyzed . | . . . Part Schematics Acquired . | . . . Parts Damaged . | . . . Bothacking | -11 -10 -9 ------------ Run | Scr Mat Mat Used RIF Installer . | . . . Robots Hacked . | . . . Non-combat . | . . . Combat . | . . . Robot Hacks Applied . | . . . Relay Couplers Released . | . . . Robots Rewired . | . . . Allies Hacked . | . . . Hacks Repelled . | . . . Allies | -11 -10 -9 -------- Run | Scr Mat Mat Total Allies . | . . . Largest Group . | . . . Highest-Rated Group . | . . . Highest-Rated Ally . | . . . Total Orders . | . . . Ally Attacks . | . . . Total Damage . | . . . Kills . | . . . Allies Corrupted . | . . . Allies Melted . | . . . Intel | -11 -10 -9 ------- Run | Scr Mat Mat Robot Analysis Total . | . . . Derelict Logs Recovered . | . . . Drone Launches . | . . . Drone Recoveries . | . . . Exploration | -11 -10 -9 ------------- Run | Scr Mat Mat Turns Passed 480 | 78 258 144 Spaces Moved 371 | 69 178 124 Core 14 | 2 . 12 Treads . | . . . Legs . | . . . Wheels 357 | 67 178 112 Hover . | . . . Flight . | . . . Fastest Speed 50 | 50 90 80 Average Speed 88 | 89 90 87 Slowest Speed 100 | 100 90 100 Overloaded Moves . | . . . Propulsion Burnouts . | . . . Robots Hopped . | . . . Cave-ins Triggered . | . . . Exploration Rate (%) 20 | 4 36 22 Regions Visited 2 Branch Regions . Pre-discovered Areas . | . . . Known Exits Taken . | . . . Unknown Exits Taken 2 | 1 1 . Scrap Searched . | . . . Spaces Dug . | . . . Terrain Destroyed . | . . . Melee . | . . . Projectile . | . . . AOE . | . . . Actions | -11 -10 -9 --------- Run | Scr Mat Mat Total 459 | 82 230 147 Wait 23 | 2 20 1 Move 369 | 68 177 124 Hop . | . . . Pick Up 13 | 6 4 3 Fast Attach 7 | 6 1 . Attach 6 | . 2 4 Detach . | . . . Swap . | . . . Drop 2 | . 2 . Fire 32 | . 24 8 Melee . | . . . Ram 7 | . . 7 Kick . | . . . Crush . | . . . Escape Stasis . | . . . Rewire . | . . . Trap . | . . . Miscellaneous . | . . . Route ------- -11/Scrapyard -10/Materials -9/Materials (discovered 1 exit: [*Min]) History --------- Turn | Location | Event 8 | -11/Scrapyard | Discovered new exit (range 16) 79 | -11/Scrapyard | Entered Materials 280 | -10/Materials | Core integrity fell below 50% 310 | -10/Materials | Build established: Mutant 324 | -10/Materials | Discovered new exit (range 16) 337 | -10/Materials | Entered another Materials area 337 | -9/Materials | Evolved 2 slots: Propulsion x1, Weapon x1 338 | -9/Materials | Lost 3 parts (1p2w) 466 | -9/Materials | Core integrity fell below 50% 473 | -9/Materials | Discovered new exit (range 13) 477 | -9/Materials | Core integrity fell below 20% 481 | -9/Materials | Destroyed by S-10 Pest with Light Assault Rifle Last Messages --------------- Sml. Laser destroyed. Sensor Array destroyed. Electrolysis Chamber disabled. G-47 Trooper misfires. Wheel destroyed. C-30 ARC bursts open, deploying its payload. S-10 Pest unfolds itself. G-47 Trooper destroyed. Ion Engine destroyed. Sml. Laser destroyed. G-34 Mercenary destroyed. Com. Wheel destroyed. Wheel destroyed. Shock Rifle destroyed. Slammed into S-10 Pest. Slammed into G-47 Trooper. Destabilizing: System corrupted (+2). EXIT=FOUND W-16 Scout sends out distress signal. U-05 Engineer lays Concrete. Map ----- +----------------------------------------------------+ | ??????????????????????????????????????????????# ? | | ??????????????????????????????????????????????# | | ??????????????????????????????????????????????? | | ?????????????????????????????#######??????????? | | ?????????????????????????????# #??????????? | | ????????????????????????????? #??????????? | | ????????????????????????????? +????????????" | | ?????????????????????????????? #?????????????R | | ???????????????????########### ] ??????????????? | | ???????????????????# =%! ## #??????????????# | | ???????????????????# %=* ## #??????######### | | ???????????????????# """!" " ## #??????# # | | ???????????????????# """ """ ## ######## # | | ???????????????????# """ """ ## # # # | | ???????????????????# ##a # """# # | | ???????????????????# / # """# # | | ???????????????????# # + """# + | | ???????????????????#######g### # # # | | ???????????????#??###### gs ssgY # # # | | ??????????# ####T## [ ##+############# | | ??????????# g ############ | | ??????????# | | ??????????# w u[ | | ????????# [[ ##### "" | | ????????# u #???# "T | | ????????? @ #???# ## ## "" | | ????????? ### #???# ## ## | | ?????????? ??# #???# ##!! [ *## | | ??????????#+##########?? ??# ##!![[**## | | ???????????????????????? ""?? ########## | | ???????????????????????# ||#?/?????????# | | ???????????????????????# < ""#???????????# | | ???????????????????????# !!#???????????####### | | ???????????????????????# ""#?????????????????? | | ???????????????????????# "#?????????????????? | | ???????????????????????## k###??????????????????? | | ????????????????????????? #????????????????????? | | ????????????????????????? #????????????????????? | | ????????????????????????? #????????????????????? | | ????????????????????????? #????????????????????? | | ????????????????????????? ?????????????????????? | | ?????????????????????????????????????????????????? | | ?????????????????????????????????????????????????? | | ?????????????????????????????????????????????????? | | ?????????????????????????????????????????????????? | | ?????????????????????????????????????????????????? | | ?????????????????????????????????????????????????? | | ?????????????????????????????????????????????????? | | ?????????????????????????????????????????????????? | | ?????????????????????????????????????????????????? | +----------------------------------------------------+ Best States ------------- Heat Dissipation 28 Energy Generation 10 Energy Capacity 250 Matter Stores 251 Matter Capacity 300 Sight Range 16 Robot Scan Range 10 Terrain Scan Density 10 Evasion (%) 42 Item Schematics ----------------- None Robot Schematics ------------------ None Fabricated ------------ Nothing Alien Tech Used ----------------- None Achievements -------------- None Challenges ------------ None Game ------ Seed NullNullVibroblade Manual? 0 Play Time 00:10:54 Cumulative 50.6 hours Start 2020.09.10 @ 21:02:47 End 2020.09.10 @ 21:13:43 Sessions 1 Manual Loads 0 Difficulty Rogue Special Mode None Game No. 161 Rogue 161 Adventurer 0 Explorer 0 Win Type - Total 0 Types 0/0/0/0/0/0/0 Lore% 13 Gallery% 29 Achievement% 14 Wizard Run 0 Options --------- ASCII 1 Keyboard 1 Movement Numpad Keybinds 0 Fullscreen 1 Font 12/Terminus Map View 83x54 Tactical HUD 0 Map Filters NONE Filters NONE Steam 1 RUN: 2b86b31a-e2b2-4622-b008-1fbd290335c2